Cogmind - Beta 15 @@@ ROGUE MODE // 2025.05.24 @ 22:33:15 Player: erfael Result: Destroyed by G-34 Mercenary with Small Laser Performance ------------- Evolutions (0) 0 Regions Visited (2) 400 Robots Destroyed (8) 40 Value Destroyed (160) 160 Prototype IDs (0) 0 Alien Tech Used (0) 0 Bonus (-12) -12 TOTAL SCORE: 588 Bonus ------- Friendly Fire -12 Cogmind --------- Core Integrity 0/250 Matter 284/300 Energy 97/100 System Corruption 4% Temperature Cool (6) Movement Treading (152) Location -10/Mines Parts ------- > --- POWER (1) -------- (None) > --- PROPULSION (2) --- Light Treads Advanced Treads > --- UTILITY (2) ------ Small Storage Unit Power Shielding > --- WEAPON (2) ------- Small Laser Datajack > --- INVENTORY (8) ---- Ion Engine Light Ion Engine Heat Sink Medium Matter Pod (1) Improved Sensor Array Advanced Targeting Computer Peak State ------------ > --- POWER ------------ (None) > --- PROPULSION ------- Light Treads Advanced Treads > --- UTILITY ---------- Small Storage Unit Power Shielding > --- WEAPON ----------- Small Laser Datajack > --- INVENTORY -------- Ion Engine Light Ion Engine Heat Sink Medium Matter Pod Improved Sensor Array Advanced Targeting Computer [Rating: 9] Favorites ----------- Power Light Ion Engine Engine Light Ion Engine Propulsion Compact Wheel Treads Advanced Treads Leg Aluminum Leg Wheel Compact Wheel Utility Small Storage Unit Storage Small Storage Unit Protection Power Shielding Weapon Small Laser Energy Gun Small Laser Ballistic Gun Assault Rifle Special Melee Weapon Datajack Build | -11 -10 -10 ------- Run | Yrd Mat Min Slots Evolved . | . . . Power . | . . . Propulsion . | . . . Utility . | . . . Weapon . | . . . Parts Attached 13 | 7 3 3 Power 1 | 1 . . Engine 1 | 1 . . Core . | . . . Reactor . | . . . Propulsion 5 | 3 . 2 Treads 2 | . . 2 Leg 1 | 1 . . Wheel 2 | 2 . . Hover . | . . . Flight . | . . . Utility 2 | 1 1 . Device . | . . . Storage 1 | 1 . . Processor . | . . . Hackware . | . . . Protection 1 | . 1 . Artifact . | . . . Weapon 5 | 2 2 1 Energy Gun 2 | . 2 . Energy Cannon . | . . . Ballistic Gun 2 | 2 . . Ballistic Cannon . | . . . Launcher . | . . . Special Weapon . | . . . Impact Weapon . | . . . Slashing Weapon . | . . . Piercing Weapon . | . . . Special Melee Weapon 1 | . . 1 Unidentified Prototypes . | . . . Parts Lost 6 | . 6 . Power 1 | . 1 . Propulsion 2 | . 2 . Utility . | . . . Weapon 3 | . 3 . Highest Loss Streak 4 | . 4 . To Critical Strikes . | . . . Average Backups 4 | 3 4 6 Power 1 | . 1 2 Propulsion . | 1 1 . Utility 1 | . . 3 Weapon . | . . . Tool/Special . | . . . Unused Backups 7 | 1 . 6 Power 2 | . . 2 Propulsion 1 | 1 . . Utility 4 | . . 4 Weapon . | . . . Tool/Special . | . . . Average Slot Usage (%) 69 | . 72 62 Engine 4 | . 6 . Treads 4 | . . 14 Wheel 11 | . 16 . Storage 14 | . 14 14 Protection 12 | . 12 14 Energy Gun 8 | . 6 14 Ballistic Gun 11 | . 15 . Special Melee Weapon 1 | . . 6 Peak Build Rating 9 | 6 7 9 Average Rating 5 | 2 5 6 On Entrance 3 | . 6 3 Naked Turns . | . . . Heaviest Build 12 | 11 12 8 Greatest Support 42 | 26 26 42 Greatest Overweight (x) 2 | . 2 2 Average Overweight (x) . | . . . Largest Inventory Capacity 8 | 8 8 8 Average Capacity 7 | 7 8 8 Most Carried 8 | 8 6 8 Average Carried 4 | 4 4 6 Final Capacity 8 | 8 8 8 Final Carried 6 | 3 6 6 Class Distribution -------------------- 100% | Mutant Dominant Class ---------------- Mutant | -10/Materials Mutant | -10/Mines Resources | -11 -10 -10 ----------- Run | Yrd Mat Min Matter Collected 382 | 214 115 53 Remotely . | . . . Salvage Created 253 | . 253 . Parts 21 | . 21 . Haulers Intercepted 1 | . 1 . Recyclers Shooed 1 | . 1 . Parts Field Recycled . | . . . Retrieved Matter . | . . . Parts Self-Destructed . | . . . Prevented . | . . . Kills | -11 -10 -10 ------- Run | Yrd Mat Min Combat Hostiles Destroyed 6 | . 6 . Guns 6 | . 6 . Classes Destroyed 4 | . 4 . Hauler 1 | . 1 . Watcher 1 | . 1 . Swarmer 3 | . 3 . Grunt 3 | . 3 . Best Kill Streak 3 | . 3 . Combat Bots Only 3 | . 3 . Max Kills in Single Turn 1 | . 1 . Gunslinging . | . . . Exploded . | . . . Melee . | . . . Uniques/NPCs Destroyed . | . . . Combat | -11 -10 -10 -------- Run | Yrd Mat Min Hostile Shots Fired 107 | . 99 8 Missed 31 | . 30 1 Hits 76 | . 69 7 Projectile 76 | . 69 7 Damage Taken 825 | . 743 82 Core 259 | . 239 20 Absorbed by Shields . | . . . Redirected to Shielding 18 | . 18 . Core Remaining (%) 100 | 100 . . Volleys Fired 39 | . 36 3 Largest 2 | . 2 1 Hottest 80 | . 80 40 Shots Fired 60 | . 56 4 Gun 60 | . 56 4 Cannon . | . . . Launcher . | . . . Special . | . . . Kinetic 38 | . 38 . Thermal 17 | . 13 4 Explosive . | . . . Electromagnetic 5 | . 5 . Robot Hit Streak 6 | . 6 2 Robot Miss Streak 3 | . 3 1 Penetration Max . | . . . Secondary Targets 3 | . 3 . Max Gunslinging Chain 1 | . 1 . Shots Hit Robots 39 | . 36 3 Core Hits 18 | . 18 . Critical Kills . | . . . Critical Parts Destroyed 1 | . 1 . Critical Strikes 1 | . 1 . Destroy 1 | . 1 . Melee Attacks 1 | . . 1 Impact . | . . . Slashing . | . . . Piercing . | . . . Sneak Attacks . | . . . Combat Hostiles . | . . . Follow-up Attacks . | . . . Damage Inflicted 487 | . 464 23 Guns 456 | . 433 23 Cannons . | . . . Explosions . | . . . Melee . | . . . Ramming 31 | . 31 . Kinetic 283 | . 283 . Thermal 133 | . 110 23 Explosive . | . . . Electromagnetic 40 | . 40 . Impact . | . . . Slashing . | . . . Piercing . | . . . Highest Corruption 4 | . 4 4 Average Corruption 3 | . 3 4 Corruption Purged . | . . . Corruption Blocked . | . . . Effects 12 | . 3 9 Message Errors 2 | . . 2 Matter Fused 5 | . 2 3 Energy Discharges 2 | . 1 1 Data Loss (minor) 1 | . . 1 Misfires 1 | . . 1 Alerts 1 | . . 1 Overload Shots . | . . . Overflow Damage . | . . . Projectiles . | . . . Explosions . | . . . Melee . | . . . Knockbacks 1 | . 1 . Impact 1 | . 1 . Kinetic . | . . . Secondary . | . . . Self-Inflicted Damage 14 | . 14 . Shots . | . . . Rammed 10 | . 10 . Targets Rammed 10 | . 10 . Kicked . | . . . Crushed . | . . . Highest Temperature 48 | . 48 1 Average Temperature 19 | . 20 1 Received Heat Transfer 390 | . 345 45 Siege Activations . | . . . Martial Activations . | . . . Shielding Activations . | . . . Robots Disrupted . | . . . Combat Hostiles . | . . . Robots Corrupted . | . . . Combat Hostiles . | . . . Parts Fried . | . . . Impact Corruptions . | . . . Robots Melted . | . . . Combat Hostiles . | . . . Parts Melted . | . . . Heat Transferred 300 | . 250 50 Parts Sabotaged . | . . . Parts Stolen . | . . . Parts Stripped . | . . . Power Chain Reactions . | . . . Alert | -11 -10 -10 ------- Run | Yrd Mat Min Maximum Alert Level . | . . . Low Security (%) 100 | 100 100 100 Level 1 . | . . . Level 2 . | . . . Level 3 . | . . . Level 4 . | . . . Level 5 . | . . . High Security . | . . . Max Security . | . . . Peak Influence 70 | . 70 . Initial . | . . . Average 8 | . 13 . Influence Increases 179 | . 179 . Destroy 0b10 Robot/C 120 | . 120 . Destroy 0b10 Robot/NC 10 | . 10 . Destroy Leader 34 | . 34 . Disable Machine 15 | . 15 . Influence Decreases 179 | . 179 . Time Decay 119 | . 119 . Lost Part 60 | . 60 . Squads Dispatched 3 | . 2 1 Investigation 2 | . 1 1 Extermination . | . . . Reinforcement 1 | . 1 . Assault . | . . . Garrison . | . . . Intercept . | . . . Searches Triggered . | . . . Construction Impeded . | . . . Haulers Reinforced . | . . . Active Scanning Responses . | . . . Cargo Convoy Interrupts . | . . . Stealth | -11 -10 -10 --------- Run | Yrd Mat Min Distress Signals 1 | . 1 . Communications Jammed . | . . . Distress Signals . | . . . Times Spotted 19 | . 17 2 Peak Tracking Total 4 | . 4 2 Tactical Retreats . | . . . Traps | -11 -10 -10 ------- Run | Yrd Mat Min Traps Triggered 3 | . 3 . Indirectly . | . . . Trap Hack Attempts . | . . . Triggered . | . . . Disarmed . | . . . Reprogrammed . | . . . Reused . | . . . Traps Extracted . | . . . Installed . | . . . Triggered . | . . . Machines | -11 -10 -10 ---------- Run | Yrd Mat Min Machines Disabled 1 | . 1 . Max in Single Turn 1 | . 1 . Machines Repaired . | . . . Machines Dismantled . | . . . Machines Sabotaged . | . . . Overloaded Fab Kills . | . . . Hacking | -11 -10 -10 --------- Run | Yrd Mat Min Machines Accessed 1 | . . 1 Terminals . | . . . Fabricators . | . . . Repair Stations . | . . . Recycling Units . | . . . Scanalyzers . | . . . Garrison Access . | . . . Total Hacks 1 | . . 1 Successful 1 | . . 1 Failed . | . . . Catastrophic . | . . . Database Lockouts . | . . . Manual . | . . . Terminals . | . . . Fabricators . | . . . Repair Stations . | . . . Recycling Units . | . . . Scanalyzers . | . . . Garrison Access . | . . . Terminal Hacks 1 | . . 1 Open Door 1 | . . 1 Fabricator Hacks . | . . . Repair Station Hacks . | . . . Recycling Unit Hacks . | . . . Scanalyzer . | . . . Garrison Access Hacks . | . . . Unauthorized Hacks . | . . . Terminals . | . . . Fabricators . | . . . Repair Stations . | . . . Recycling Units . | . . . Scanalyzers . | . . . Garrison Access . | . . . Data Cores Recovered . | . . . Used . | . . . Hacking Detections . | . . . Full Trace Events . | . . . Feedback Events . | . . . Feedback Blocked . | . . . Robot Schematics Acquired . | . . . Robots Built . | . . . Authchips . | . . . Time . | . . . Total Robot Build Rating . | . . . Part Schematics Acquired . | . . . Parts Built . | . . . Authchips . | . . . Time . | . . . Total Part Build Rating . | . . . Parts Repaired . | . . . Time . | . . . Parts Recycled . | . . . Recycled Matter . | . . . Retrieved Matter . | . . . Retrieved Components . | . . . Parts Scanalyzed . | . . . Part Schematics Acquired . | . . . Parts Damaged . | . . . Bothacking | -11 -10 -10 ------------ Run | Yrd Mat Min Used RIF Installer . | . . . Robots Hacked . | . . . Non-combat . | . . . Combat . | . . . Robot Hacks Applied . | . . . Relay Couplers Released . | . . . Fabnet Peak Effective % . | . . . Robots Rewired . | . . . Allies Hacked . | . . . Hacks Repelled . | . . . Allies | -11 -10 -10 -------- Run | Yrd Mat Min Total Allies . | . . . Largest Group . | . . . Highest-Rated Group . | . . . Highest-Rated Ally . | . . . Total Orders . | . . . Ally Attacks . | . . . Total Damage . | . . . Kills . | . . . Allies Corrupted . | . . . Allies Melted . | . . . Intel | -11 -10 -10 ------- Run | Yrd Mat Min Active Infowar (turns) . | . . . Robot Analysis Total . | . . . Derelict Logs Recovered . | . . . Drone Launches . | . . . Drone Recoveries . | . . . Exploration | -11 -10 -10 ------------- Run | Yrd Mat Min Turns Passed 908 | 58 592 258 Spaces Moved 652 | 47 442 163 Core 235 | 22 132 81 Treads 82 | . . 82 Legs 12 | 12 . . Wheels 323 | 13 310 . Hover . | . . . Flight . | . . . Fastest Speed 50 | 50 90 145 Average Speed 116 | 78 107 150 Slowest Speed 152 | 120 150 152 Overloaded Moves . | . . . Propulsion Burnouts . | . . . Robots Hopped . | . . . Potential Cave-ins . | . . . Cave-ins Triggered . | . . . Exploration Rate (%) 31 | 3 52 39 Regions Visited 2 Branch Regions 1 Pre-discovered Areas . | . . . Known Exits Taken . | . . . Unknown Exits Taken 2 | 1 1 . Scrap Searched . | . . . Spaces Dug . | . . . Terrain Destroyed . | . . . Melee . | . . . Projectile . | . . . AOE . | . . . Terrain Rammed . | . . . Walls Destroyed . | . . . Machines Disabled . | . . . Actions | -11 -10 -10 --------- Run | Yrd Mat Min Total 748 | 69 504 175 Wait 8 | . 8 . Move 650 | 46 441 163 Hop . | . . . Pick Up 21 | 11 6 4 Fast Attach . | . . . Attach 14 | 8 3 3 Detach 2 | 2 . . Swap . | . . . Drop 3 | 2 . 1 Fire 39 | . 36 3 Melee 1 | . . 1 Ram 10 | . 10 . Kick . | . . . Crush . | . . . Escape Stasis . | . . . Rewire . | . . . Trap . | . . . Miscellaneous . | . . . Route ------- -11/Scrapyard -10/Materials (discovered 2 exits: [*Mat] / *Min) -10/Mines History --------- Turn | Location | Event 14 | -11/Scrapyard | Discovered new exit (range 15) 59 | -11/Scrapyard | Entered Materials 312 | -10/Materials | Build established: Mutant 415 | -10/Materials | Core integrity fell below 50% 430 | -10/Materials | Core integrity fell below 20% 466 | -10/Materials | Lost 4 parts (2n2w) 507 | -10/Materials | Discovered new exit (range 15) 574 | -10/Materials | Discovered new exit (range 8) 651 | -10/Materials | Entered Mines 759 | -10/Mines | Met a Derelict shopkeep closing up shop 909 | -10/Mines | Destroyed by G-34 Mercenary with Small Laser Last Messages --------------- >>Open Door Sealed Doors opened. 00759_ HB-4RW(g): "Sorry, the Unaware have moved into these parts and I'm closing up shop. No more sales from me!" 00761_ ALERT: Derelict activity detected in mines. Dispatching investigation squad. 00763_ System corrupted: FCS attempts to trigger Sml. Laser. 00763_ System corrupted: Sml. Laser misfires. 00763_ HB-4RW(g): "Take whatever you can and run for it!" 00767_ Acquired Imp. Sensor Array. 00769_ Acquired Adv. Targeting Computer. 00773_ Dropped Lgt. Treads. 00773_ Acquired Adv. Treads. 00778_ Acquired Lgt. Treads. 00822_ System corrupted: IFF burst signal emitted. 00858_ A=BBH5#AGNU/ 0OUFTP>LH